bitfinex/quotes_ETHUSD_20220309
["timestamp","ask_amount","ask_price","bid_price","bid_amount"]
[1646821591787,0.029168,2751.6,2750.8,1.217]
[1646821592090,0.029168,2751.6,2750.9,3.5]
[1646821592988,0.029168,2751.6,2751.2,0.9539947]
[1646821593390,1.2783961,2752.2,2751.3,3.5]
[1646821593590,3.0529961,2752.2,2751.2,0.9539947]
[1646821593791,3.3529961,2752.2,2751.2,0.9539947]
[1646821595191,0.02516228,2751.5,2751.2,0.9539947]
[1646821595443,3.327568,2752.2,2751.5,0.03006253]
[1646821596239,4.327568,2752.2,2751.5,0.03006253]
[1646821596441,2.9984,2751.9,2751.5,0.03006253]
[1646821596840,3.2984,2751.9,2751.5,0.03006253]
[1646821597840,1.3,2751.9,2751.5,0.03006253]
[1646821598042,0.99936887,2751.7,2751.5,0.03006253]
[1646821598442,0.474168,2751.6,2751.5,0.03006253]
[1646821599285,3.472568,2751.6,2751.5,0.03006253]
[1646821599684,4.472568,2751.6,2751.5,0.03006253]
[1646821599890,5.319668,2751.6,2751.5,0.03006253]
[1646821600088,6.90969,2751.5,2750.7,0.00273035]
[1646821600290,6.90969,2751.5,2750.4,0.01767008]
[1646821600291,0.029168,2750.8,2750.4,0.02040043]
[1646821600490,1.745,2751.0,2750.6,0.00389577]
[1646821600692,0.029168,2750.7,2750.6,0.00389577]
[1646821600891,3.027568,2750.7,2750.6,0.00389577]
[1646821601093,4.1220788,2750.7,2750.6,0.00389577]
[1646821601292,5.4220788,2750.7,2750.4,0.01767008]
[1646821601491,4.327568,2750.7,2750.4,0.01767008]
[1646821601692,4.327568,2750.7,2750.5,0.00389559]
[1646821601897,3.2984,2750.7,2750.5,0.00389559]
[1646821602495,3.2984,2750.7,2750.4,1.22273951]
[1646821602942,3.2984,2750.7,2750.5,0.00391653]
[1646821603544,3.2984,2750.7,2750.5,3.86641653]
[1646821603545,2.9984,2750.7,2750.5,3.86641653]
[1646821603747,1.80378077,2751.8,2750.4,1.22273951]
[1646821603748,0.029168,2751.7,2750.6,3.5]
[1646821603943,3.35154322,2751.9,2750.6,3.5]
[1646821604142,3.35154322,2751.9,2750.6,3.50273035]
[1646821604544,2.9984,2751.8,2751.1,1.18133801]
[1646821604744,2.9984,2751.8,2751.2,3.5]
[1646821604943,2.9984,2751.8,2751.1,1.18133801]
[1646821605146,2.9984,2751.8,2751.1,4.68133801]
[1646821605343,2.9984,2751.8,2751.1,1.18133801]
[1646821606596,3.2984,2751.8,2751.1,1.18133801]
[1646821608492,0.029168,2751.7,2751.1,1.18133801]
[1646821611741,3.02191551,2751.8,2750.9,3.5]
[1646821611742,0.029168,2751.3,2750.9,3.5]
[1646821611942,0.029168,2751.3,2750.8,0.01503551]
[1646821612142,1.32351551,2751.8,2750.9,1.49792846]
[1646821612343,3.027568,2751.6,2750.9,1.49792846]
[1646821612544,3.327568,2751.6,2751.0,3.5]
[1646821612744,3.327568,2751.6,2751.2,1.07411752]
[1646821612949,2.9984,2751.6,2751.2,1.07411752]
[1646821613144,0.02351551,2751.8,2751.2,1.07411752]
[1646821613345,0.029168,2751.7,2751.2,1.07411752]
[1646821615395,0.029168,2751.7,2750.9,3.69733042]
[1646821615601,0.029168,2751.5,2751.0,1.49784381]
[1646821616397,0.029168,2751.5,2751.1,3.5]
[1646821616598,0.029168,2751.5,2750.9,3.5]
[1646821616800,0.029168,2751.5,2751.0,1.49780047]
[1646821616998,0.029168,2751.7,2751.0,1.49780047]
[1646821617698,0.029168,2751.7,2751.2,1.02495711]
[1646821619438,0.029168,2751.7,2751.3,1.49775625]
[1646821620039,0.029168,2751.7,2751.2,1.02495711]
[1646821620040,0.029168,2751.6,2751.2,1.02495711]
[1646821621044,0.029168,2751.6,2751.3,1.49778464]
[1646821621247,0.029168,2751.6,2751.2,1.02495711]
[1646821621444,0.029168,2751.6,2751.3,1.49780135]
[1646821621689,0.05268351,2751.8,2751.3,1.49780135]
[1646821623294,0.05268351,2751.8,2751.4,1.49780135]
[1646821623490,0.05268351,2751.8,2751.0,0.0156153]
[1646821623691,0.05268351,2751.8,2751.1,1.49779693]
[1646821623692,0.02351551,2751.8,2751.1,1.49779693]
[1646821623890,0.029168,2751.4,2751.1,1.49779693]
[1646821624092,1.17652362,2751.8,2751.1,1.49779693]
[1646821624292,0.029168,2751.2,2751.1,1.49779693]
[1646821624492,0.00088506,2751.1,2750.9,1.04957482]
[1646821624693,0.00088506,2751.1,2751.0,1.49785328]
[1646821627443,0.00088506,2751.1,2751.0,4.99785328]
[1646821628446,0.00088506,2751.1,2751.0,1.49785328]
[1646821629103,0.00088506,2751.1,2751.0,4.62018722]
[1646821629491,0.00088506,2751.1,2751.0,4.62040508]
[1646821629693,3.05108351,2751.8,2751.1,0.85973331]
[1646821629893,3.35108351,2751.8,2751.2,1.49785328]
[1646821630293,0.02548681,2751.5,2751.2,1.49785328]
[1646821631898,0.02548681,2751.5,2751.3,1.49785328]
[1646821632098,0.029168,2751.4,2751.1,0.00069331]
[1646821632505,0.02548681,2751.5,2751.1,0.00069331]
[1646821633142,0.02548681,2751.5,2751.3,1.15724166]
[1646821633340,0.02548681,2751.5,2751.4,1.49782984]
[1646821638488,0.02548681,2751.5,2751.1,0.00069331]
[1646821640091,0.02548681,2751.5,2751.4,1.06127953]
[1646821640336,0.02548681,2751.5,2751.4,2.55910937]
[1646821644603,0.02548681,2751.5,2751.4,1.49782984]
[1646821644798,0.58151122,2751.9,2751.6,0.03141651]
[1646821644998,0.85234322,2751.9,2751.7,1.49782984]
[1646821645199,0.029168,2751.8,2751.7,1.49782984]
[1646821648549,3.529168,2751.8,2751.7,1.49782984]
[1646821648745,4.027568,2751.8,2751.6,0.03141651]
[1646821648946,4.027568,2751.8,2751.7,1.49763807]
[1646821650750,4.04915301,2751.8,2751.7,1.49763807]
[1646821653495,0.02158501,2751.8,2751.7,1.49763807]
[1646821661311,0.02158501,2751.8,2751.7,1.49163407]
[1646821664148,0.05075301,2751.8,2751.7,1.49163407]
[1646821667110,0.02158501,2751.8,2751.7,1.49163407]
[1646821670750,0.05075301,2751.8,2751.7,1.49163407]
[1646821678954,0.02158501,2751.8,2751.7,1.49163407]
[1646821680758,0.02158501,2751.8,2751.7,4.99163407]
[1646821680957,0.02158501,2751.8,2751.7,1.49163407]
[1646821682101,0.05075301,2751.8,2751.7,1.49163407]
[1646821683104,3.04915301,2751.8,2751.7,1.49163407]
[1646821683303,5.05538257,2751.8,2751.7,1.49163407]
[1646821683704,5.05538257,2751.8,2751.7,1.49759724]
[1646821683705,5.35538257,2751.8,2751.7,1.49759724]
[1646821683905,5.35538257,2751.8,2751.6,0.03141651]
[1646821684105,0.029168,2751.7,2751.6,0.03141651]
[1646821684306,0.029168,2751.7,2751.6,1.52902233]
[1646821684907,0.029168,2751.7,2751.6,1.52811795]
[1646821686460,6.0,2751.5,2750.7,0.10567043]
[1646821686660,2.9984,2750.8,2750.7,0.10567043]
[1646821686958,3.027568,2750.8,2750.6,0.0039044]
[1646821687161,0.029168,2750.7,2750.6,0.0039044]
[1646821687559,1.07880614,2750.7,2750.6,0.0039044]
[1646821687959,0.029168,2750.7,2750.1,0.07947107]
[1646821688161,4.2984,2750.8,2750.1,0.07947107]
[1646821688460,0.029168,2750.5,2750.1,0.07947107]
[1646821688659,4.2984,2750.8,2750.5,0.03315557]
[1646821688862,1.3,2750.8,2750.5,0.03315557]
[1646821689299,2.9984,2750.9,2750.5,0.03315557]
[1646821689300,4.2984,2750.9,2750.5,0.03315557]
[1646821689499,4.2984,2750.9,2750.5,1.08705406]
[1646821689700,2.9984,2750.9,2750.5,1.08705406]
[1646821690301,2.9984,2750.9,2750.5,1.08313815]
[1646821690501,2.9984,2750.9,2750.6,0.00391585]
[1646821691107,3.9984,2750.9,2750.6,0.00391585]
[1646821691602,3.9984,2750.9,2750.5,1.08313815]
[1646821691802,3.9984,2750.9,2750.6,0.0039158]
[1646821692865,3.9984,2750.9,2750.5,1.08313815]
[1646821693054,3.9984,2750.9,2750.6,0.0039037]
[1646821693855,3.9984,2750.9,2750.5,1.08313815]
[1646821694055,3.9984,2750.9,2750.6,0.0039037]
[1646821694857,4.02282393,2750.9,2750.6,0.0039037]
[1646821695057,4.02282393,2750.9,2750.5,0.03315557]
[1646821695458,4.02282393,2750.9,2750.6,0.0039037]
[1646821695862,0.90962,2750.8,2750.6,0.0039037]
[1646821696059,2.9984,2750.7,2750.6,0.0039037]
[1646821696261,4.2984,2750.7,2750.5,0.03315557]
[1646821696696,4.2984,2750.7,2750.6,0.00390459]
[1646821697498,4.2984,2750.7,2750.5,0.03315557]
[1646821697699,4.2984,2750.7,2750.5,0.03706021]
[1646821698900,4.2984,2750.7,2750.5,0.03706027]
[1646821699700,4.32282588,2750.7,2750.5,0.03706027]
[1646821699900,4.32282588,2750.7,2750.5,0.03315557]
[1646821700101,1.32442588,2750.7,2750.5,0.03315557]
[1646821700359,2.9984,2750.6,2750.5,0.03706021]
[1646821700750,3.9984,2750.6,2750.5,0.03706021]
[1646821700954,2.9984,2750.6,2750.5,0.03706021]
[1646821701149,3.9984,2750.6,2750.5,0.03315557]
[1646821703456,1.0,2750.6,2750.5,0.03315557]
[1646821703852,0.32442588,2750.7,2750.5,0.03315557]
[1646821704098,0.02442588,2750.7,2750.5,0.03315557]
[1646821704897,1.79184761,2751.1,2750.5,0.03315557]
[1646821705101,2.09184761,2751.1,2750.5,0.03706022]
[1646821706005,2.9984,2750.7,2750.5,0.03315557]
[1646821706204,3.9984,2750.7,2750.5,0.03315557]
[1646821706502,3.9984,2750.7,2750.6,1.49793392]
[1646821706503,4.2984,2750.7,2750.6,1.49793392]
[1646821707203,0.57658648,2751.1,2750.6,1.49793392]
[1646821707404,3.0225716,2751.1,2750.6,1.49793392]
[1646821708468,3.3225716,2751.1,2750.6,1.49793392]
[1646821708671,4.3225716,2751.1,2750.7,0.00390436]
[1646821708866,3.3225716,2751.1,2750.7,0.00390436]
[1646821709067,4.3225716,2751.1,2750.7,0.00390436]
[1646821709468,4.3225716,2751.1,2750.7,0.91315436]
[1646821709469,4.0225716,2751.1,2750.7,0.91315436]
[1646821709668,3.0225716,2751.1,2750.8,1.49793392]
[1646821710267,2.9984,2751.1,2750.8,1.49793392]
[1646821711073,0.00266187,2751.6,2750.8,3.31619392]
[1646821711277,0.00266187,2751.6,2750.9,1.49793392]
[1646821711478,0.54232698,2751.9,2750.5,1.33726559]
[1646821711711,3.5,2751.8,2750.7,0.3625]
[1646821711912,3.5,2751.8,2750.8,1.49779687]
[1646821712111,2.9984,2751.6,2750.8,1.49779687]
[1646821712513,2.9984,2751.6,2751.0,0.00390411]
[1646821712514,3.0010622,2751.6,2751.0,0.00390411]
[1646821712712,3.0010622,2751.6,2751.0,1.23763943]
[1646821713112,3.0010622,2751.6,2751.1,1.49775007]
[1646821713313,3.0010622,2751.6,2751.0,1.53373532]
[1646821713314,3.2984,2751.6,2751.0,1.53373532]
[1646821713515,4.3010623,2751.6,2751.1,1.49775252]
[1646821714515,4.2984,2751.6,2751.1,1.49775252]
[1646821714716,4.30106235,2751.6,2751.1,1.49775252]
[1646821715751,4.2984,2751.6,2751.1,1.49775252]
[1646821715951,4.30106235,2751.6,2751.0,1.53763947]
[1646821716353,4.30106235,2751.6,2751.0,1.23763947]
[1646821716853,4.2984,2751.6,2751.0,1.23373532]
[1646821717357,4.2984,2751.6,2751.0,1.23761368]
[1646821717358,4.00097641,2751.6,2751.0,1.23761368]
[1646821717553,0.00257641,2751.6,2751.0,2.50919368]
[1646821717752,0.00257641,2751.6,2751.1,0.1817]
[1646821718154,0.0242852,2751.9,2751.0,2.98701532]
[1646821718354,0.00257646,2751.6,2751.0,2.99089369]
[1646821718555,0.00257646,2751.6,2751.1,1.12937194]
[1646821719308,0.0242852,2751.9,2751.1,1.12937194]
[1646821719506,0.0242852,2751.9,2751.6,1.186316]
[1646821720408,0.02436951,2752.2,2751.6,2.095216]
[1646821720808,0.00266247,2751.9,2751.6,13.555773]
[1646821721209,0.02436951,2752.2,2751.9,0.36558516]
[1646821721609,0.02436951,2752.2,2751.9,0.31558516]
[1646821722110,0.02436951,2752.2,2751.9,1.22432516]
[1646821722309,0.02436951,2752.2,2752.0,1.17271864]
[1646821724457,0.02702532,2752.2,2752.0,1.17271864]
[1646821724654,0.02702532,2752.2,2751.7,1.10500234]
[1646821724655,0.03182381,2752.2,2751.7,1.10500234]
[1646821725461,3.9984,2752.7,2751.7,1.10500234]
[1646821725462,0.028001,2752.6,2751.9,0.90872]
[1646821725760,0.00265581,2752.1,2752.0,4.0441]
[1646821725959,0.00265581,2752.1,2752.0,0.5441]
[1646821726362,0.00265581,2752.1,2752.0,0.1816]
[1646821726599,0.028001,2752.6,2752.0,0.99833795]
[1646821726802,0.00265581,2752.2,2752.0,0.99833795]
[1646821727003,0.00265581,2752.2,2752.0,2.24593795]
[1646821727800,0.028001,2752.6,2752.0,5.74593795]
[1646821728001,0.00265581,2752.2,2752.0,2.24593795]
[1646821728601,0.00265581,2752.2,2752.0,5.74593795]
[1646821728803,0.00265581,2752.2,2752.1,3.5]
[1646821729000,0.028001,2752.6,2752.0,3.51716795]
[1646821729201,0.00265581,2752.2,2752.0,7.31716795]
[1646821729401,0.00265581,2752.2,2752.0,3.81716795]
[1646821729803,0.00265581,2752.2,2752.0,2.90843795]
[1646821730202,0.028001,2752.6,2752.1,3.5]
[1646821730456,0.028001,2752.6,2752.5,1.11013831]
[1646821730657,3.9984,2753.1,2752.5,1.11013831]
[1646821730855,0.028001,2753.0,2752.5,1.11013831]
[1646821731755,0.00265581,2752.9,2752.5,1.11013831]
[1646821732557,0.028001,2753.0,2752.5,1.11013831]
[1646821732856,0.00265581,2752.8,2752.5,1.11013831]
[1646821733856,0.028001,2753.0,2752.5,1.11013831]
[1646821734098,0.00265581,2752.8,2752.5,1.11013831]
[1646821734898,0.05245324,2753.0,2752.5,1.11013831]
[1646821735099,0.05245324,2753.0,2752.1,5.31721]
[1646821735304,0.00265581,2752.8,2752.2,0.3]
[1646821735504,0.00265581,2752.8,2752.0,3.5]
[1646821735704,0.00265581,2752.8,2751.9,0.1816]
[1646821736204,0.05245324,2753.0,2751.9,0.1816]
[1646821736605,0.00265581,2752.5,2751.9,0.1816]
[1646821736804,0.00265581,2752.5,2752.2,1.00959354]
[1646821737311,0.05245324,2753.0,2752.2,1.00959354]
[1646821737706,0.00265581,2752.5,2752.2,1.00959354]
[1646821738551,3.05085324,2753.0,2751.9,0.1816]
[1646821738753,4.35085324,2753.0,2751.9,0.1816]
[1646821738951,0.00265581,2752.5,2751.9,0.1816]
[1646821739756,4.02281789,2752.9,2752.0,1.20138485]
[1646821740057,0.00265581,2752.3,2752.0,1.20138485]
[1646821740656,0.00265581,2752.3,2751.9,0.4816]
[1646821740860,0.00265581,2752.3,2751.9,0.1816]
[1646821741607,2.9984,2752.0,2751.9,0.1816]
[1646821741801,4.2984,2752.0,2751.7,0.87606951]
[1646821742503,3.00105576,2752.0,2751.7,0.87606951]
[1646821742707,0.00265576,2752.0,2751.7,0.87606951]
[1646821743505,5.272601,2752.6,2751.7,0.87606951]
[1646821743711,0.00265576,2752.0,2751.7,0.87606951]
[1646821744505,5.272601,2752.6,2751.8,3.5]
[1646821744506,4.026401,2752.6,2751.8,3.5]
[1646821745005,0.00265576,2752.0,2751.8,3.5]
[1646821745854,0.05225063,2752.3,2751.8,3.5]
[1646821746152,0.00265581,2752.0,2751.8,3.5]
[1646821746754,0.05225063,2752.3,2752.0,0.00316298]
[1646821746953,0.02424963,2752.3,2752.0,4.41176298]
[1646821747153,0.02424963,2752.3,2752.0,4.71176298]
[1646821747357,0.02424963,2752.3,2752.1,0.98930015]
[1646821747554,0.02424963,2752.3,2752.2,3.5]
[1646821748355,0.02424963,2752.3,2752.1,1.28930015]
[1646821748753,0.02424963,2752.3,2752.1,0.98930015]
[1646821749601,0.028001,2752.7,2752.1,0.98930015]
[1646821749801,0.028001,2752.7,2752.2,3.5]
[1646821750306,0.028001,2752.7,2752.1,1.28535315]
[1646821750512,0.028001,2752.7,2752.1,0.98535315]
[1646821750906,0.00264917,2752.6,2752.1,0.98535315]
[1646821751707,0.00264917,2752.6,2752.2,3.5]
[1646821751907,0.028001,2752.7,2752.2,3.5]
[1646821752207,0.00264917,2752.5,2752.2,3.5]
[1646821752952,0.028001,2752.7,2752.2,3.5]
[1646821754351,0.028001,2752.7,2752.3,2.40588824]
[1646821754550,0.028001,2752.7,2752.3,0.90858]
[1646821754751,0.02434918,2752.6,2752.3,0.90858]
[1646821755755,0.0269115,2752.6,2752.3,0.90858]
[1646821756356,0.0269115,2752.6,2752.2,3.5]
[1646821756598,0.02434918,2752.6,2752.3,1.49728438]
[1646821756802,0.0269115,2752.6,2752.3,1.49728438]
[1646821757199,0.0269115,2752.6,2752.4,3.5]
[1646821757800,0.02434918,2752.6,2752.4,3.5]
[1646821758104,0.0269115,2752.6,2752.4,3.5]
[1646821758900,0.0269115,2752.6,2752.2,4.7123]
[1646821759099,0.02434918,2752.6,2752.3,1.49737288]
[1646821759301,0.02699835,2752.6,2752.3,1.49737288]
[1646821760372,0.02434918,2752.6,2752.3,1.49737288]
[1646821760575,0.02699835,2752.6,2752.3,1.49737288]
[1646821761376,0.02434918,2752.6,2752.3,1.49737288]
[1646821761576,0.02699835,2752.6,2752.3,1.49737288]
[1646821762679,0.02434918,2752.6,2752.3,4.99737288]
[1646821762880,0.02434918,2752.6,2752.4,1.49737288]
[1646821762881,0.02699835,2752.6,2752.4,1.49737288]
[1646821763882,0.02434918,2752.6,2752.4,1.49737288]
[1646821764101,0.02699835,2752.6,2752.4,1.49737288]
[1646821764501,0.02699835,2752.6,2752.5,1.49737288]
[1646821765102,0.02434918,2752.6,2752.3,1.49737288]
[1646821766504,0.02699835,2752.6,2752.3,1.49737288]
[1646821767505,0.02699835,2752.6,2752.2,1.2123]
[1646821767506,1.03171151,2752.6,2752.2,1.2123]
[1646821767707,0.02699835,2752.6,2752.3,1.49760461]
[1646821767961,0.02699835,2752.6,2752.4,1.49760461]
[1646821768162,0.02699835,2752.6,2752.5,1.49760461]
[1646821768564,0.02434918,2752.6,2752.5,1.49760461]
[1646821768760,0.02434918,2752.6,2752.1,1.49760461]
[1646821768960,0.02434918,2752.6,2752.3,1.13741697]
[1646821769160,0.02434918,2752.6,2752.4,1.49760461]
[1646821770265,0.028001,2752.9,2752.4,1.49760461]
[1646821770468,0.028001,2752.9,2752.4,4.99760461]
[1646821770667,0.028001,2752.9,2752.5,1.49760461]
[1646821770867,0.028001,2752.9,2752.6,1.49760461]
[1646821771071,0.028001,2752.9,2752.7,1.49760461]
[1646821771268,0.00264917,2752.8,2752.4,1.2023]
[1646821771469,0.00264917,2752.8,2752.5,1.49736497]
[1646821771702,3.24296175,2753.3,2752.5,1.49736497]
[1646821772101,2.24296175,2753.3,2752.5,1.49736497]
[1646821772301,3.24296175,2753.3,2752.5,1.49736497]
[1646821772500,2.24296175,2753.3,2752.5,1.49736497]
[1646821772701,3.24296175,2753.3,2752.5,1.49736497]
[1646821772900,2.24296175,2753.3,2752.5,1.49736497]
[1646821773102,3.24296175,2753.3,2752.5,1.49736497]
[1646821773301,2.54296175,2753.3,2752.5,1.49736497]
[1646821773503,3.54296175,2753.3,2752.5,1.49736497]
[1646821775105,1.3,2753.3,2752.5,1.49736497]
[1646821775359,1.3,2753.3,2752.1,3.365]
[1646821775360,0.02174388,2752.8,2752.1,3.365]
[1646821775563,0.02174388,2752.8,2752.2,1.4975396]
[1646821776564,2.2424,2752.6,2752.2,1.4975396]
[1646821776765,2.5424,2752.6,2752.2,1.4975396]
[1646821777164,3.5424,2752.6,2752.2,1.4975396]
[1646821777564,3.5424,2752.6,2752.3,1.4975396]
[1646821777764,3.5424,2752.6,2752.0,1.10490367]
[1646821777968,2.2424,2752.6,2752.1,1.49758377]
[1646821778165,0.02174388,2752.8,2752.1,1.49758377]
[1646821780909,0.02174388,2752.8,2752.1,4.99758377]
[1646821781109,0.02174388,2752.8,2752.2,1.49758377]
[1646821782410,0.02174388,2752.8,2752.3,1.49758377]
[1646821782611,0.02174388,2752.8,2752.4,1.49758377]
[1646821782862,0.02174388,2752.8,2752.5,1.49758377]
[1646821783050,0.02174388,2752.8,2752.1,1.2473]
[1646821783051,0.02174388,2752.8,2752.6,1.49758377]
[1646821783250,0.02174388,2752.8,2752.1,1.2473]
[1646821783450,0.02174388,2752.8,2752.2,1.49752055]
[1646821783955,2.2424,2752.6,2752.2,1.49752055]
[1646821784350,2.5424,2752.6,2752.2,1.49752055]
[1646821784750,3.5424,2752.6,2752.2,1.49752055]
[1646821784952,2.5424,2752.6,2752.2,1.49752055]
[1646821785151,3.5424,2752.6,2752.2,1.49752055]
[1646821787602,2.2424,2752.6,2752.2,1.49752055]
[1646821787801,1.20813512,2753.0,2752.2,1.49752055]
[1646821788002,2.2424,2752.9,2752.2,1.49752055]
[1646821788302,0.89112442,2752.9,2752.2,1.49752055]
[1646821788502,2.2424,2752.6,2752.2,1.49752055]
[1646821788904,2.2424,2752.4,2752.3,1.49752055]
[1646821789408,2.5424,2752.4,2752.3,1.49752055]
[1646821789603,2.5424,2752.4,2752.0,0.00316298]
[1646821789804,3.5424,2752.4,2752.0,0.00316298]
[1646821790004,2.5424,2752.4,2752.0,0.00316298]
[1646821790457,1.3,2752.4,2752.0,0.00316298]
[1646821790658,2.2424,2752.3,2752.0,0.00316298]
[1646821791258,1.6,2752.4,2752.0,0.00316298]
[1646821791458,2.2424,2752.2,2752.0,0.00316298]
[1646821791856,2.5424,2752.2,2752.0,0.00316298]
[1646821792257,3.5424,2752.2,2752.0,0.00316298]
[1646821792456,2.5424,2752.2,2752.0,0.00316298]
[1646821792656,3.5424,2752.2,2752.0,0.00316298]
[1646821794202,3.5424,2752.2,2752.0,0.00172568]
[1646821795407,3.56015723,2752.2,2752.0,0.00172568]
[1646821796713,1.31775723,2752.2,2752.0,0.00172568]
[1646821797216,2.2424,2752.1,2752.0,0.00172568]
[1646821797613,2.5424,2752.1,2752.0,0.00172568]
[1646821797867,3.5424,2752.1,2752.0,0.00172568]
[1646821800862,2.2424,2752.1,2752.0,0.00172568]
[1646821801065,0.01775723,2752.2,2752.0,0.00172568]
[1646821806563,0.31775723,2752.2,2752.0,0.00172568]
[1646821807866,0.01775723,2752.2,2752.0,0.00172568]
[1646821808866,0.6203184,2752.4,2752.0,0.00172568]
[1646821809106,2.65499322,2752.2,2752.0,0.00172568]
[1646821809308,2.65499322,2752.1,2752.0,0.00172568]
[1646821813054,2.65499322,2752.1,2752.0,3.50172568]
[1646821813257,1.05719513,2752.1,2752.0,5.0290158]
[1646821813654,2.65499322,2752.2,2752.1,4.5]
[1646821813856,0.0203184,2752.4,2752.2,6.0]
[1646821814055,2.24504651,2752.9,2752.3,4.99812212]
[1646821814056,0.00264651,2752.9,2752.3,4.99812212]
[1646821814255,1.2111,2753.2,2752.8,1.12583181]
[1646821814455,3.25388226,2753.4,2752.8,1.12583181]
[1646821814456,0.88848226,2753.4,2752.8,1.12583181]
[1646821814658,0.00264675,2752.9,2752.8,1.12583181]
[1646821815466,2.2424,2753.4,2752.8,1.12583181]
[1646821815963,0.00262387,2753.0,2752.8,1.12583181]
[1646821816160,0.00262387,2753.0,2752.7,0.029168]
[1646821816606,2.5424,2753.4,2752.7,0.029168]
[1646821816805,2.5424,2753.4,2752.8,1.49764585]
[1646821817006,0.00262387,2753.0,2752.7,0.029168]
[1646821817207,0.00262387,2753.0,2752.7,1.14380052]
[1646821817405,0.00262387,2753.0,2752.8,1.49765121]
[1646821817607,0.00262387,2753.0,2752.7,1.14380052]
[1646821817806,3.5424,2753.4,2752.7,1.14380052]
[1646821818009,3.5424,2753.4,2752.8,1.49764835]
[1646821818309,0.00262387,2753.0,2752.8,1.49764835]
[1646821818509,0.00262387,2753.0,2752.7,0.029168]
[1646821818807,0.30262387,2753.0,2752.4,0.029168]
[1646821819007,0.3,2753.0,2752.5,1.49776627]
[1646821819207,2.2424,2753.1,2752.5,1.49776627]
[1646821819409,0.00264723,2753.0,2752.5,1.49776627]
[1646821820010,2.12033723,2753.0,2752.4,0.029168]
[1646821820209,2.2424,2752.8,2752.4,0.029168]
[1646821820462,0.3,2752.9,2752.2,1.164468]
[1646821820666,1.30264718,2752.9,2752.3,1.49793759]
[1646821820862,2.2424,2752.6,2752.2,1.164468]
[1646821821061,0.90891,2752.5,2752.2,1.164468]
[1646821821265,1.20891,2752.5,2752.0,0.029168]
[1646821821461,1.20891,2752.5,2752.1,1.49795418]
[1646821821660,3.45131,2752.5,2752.1,1.49795418]
[1646821822162,4.45131,2752.5,2752.1,1.49795418]
[1646821823663,2.20891,2752.5,2752.1,1.49795418]
[1646821823864,2.2424,2752.3,2752.0,0.029168]
[1646821824103,2.5424,2752.3,2751.9,0.029168]
[1646821824305,2.5424,2752.3,2752.0,1.49802853]
[1646821826810,0.90891,2752.5,2752.2,0.029168]
[1646821827010,0.02157994,2752.9,2752.4,0.029168]
[1646821827209,0.02157994,2752.9,2752.5,1.52719653]
[1646821827410,0.02157994,2752.9,2752.5,0.029168]
[1646821827609,0.01893334,2752.9,2752.5,0.029168]
[1646821828463,0.01893334,2752.9,2752.6,1.49783656]
[1646821828658,0.01893334,2752.9,2752.5,0.029168]
[1646821828860,0.01893334,2752.9,2752.6,1.49783134]
[1646821829459,3.0,2753.1,2752.6,1.49783134]
[1646821829659,4.3,2753.1,2752.6,1.49783134]
[1646821830059,4.3,2753.1,2752.5,0.029168]
[1646821830259,4.3,2753.1,2752.6,1.49784832]
[1646821830463,4.3,2753.1,2752.5,0.029168]
[1646821831267,0.00265191,2752.9,2752.5,0.029168]
[1646821832210,4.3,2753.1,2752.5,0.029168]
[1646821832510,0.00265181,2752.9,2752.5,0.029168]
[1646821833411,2.72649,2753.5,2752.7,0.029168]
[1646821833412,1.88848226,2753.4,2752.7,0.029168]
[1646821833613,1.88848226,2753.4,2752.8,0.029168]
[1646821833811,0.00265181,2752.9,2752.8,0.029168]
[1646821834111,0.00265181,2752.9,2752.7,0.029168]
[1646821834610,0.90861,2753.3,2752.7,0.029168]
[1646821835011,0.00265191,2752.9,2752.7,0.029168]
[1646821835863,0.01802538,2753.1,2752.7,0.029168]
[1646821836266,0.00265191,2752.9,2752.7,0.029168]
[1646821837065,0.01802538,2753.1,2752.7,0.029168]
[1646821837265,0.00265191,2752.9,2752.7,0.029168]
[1646821838367,0.01802538,2753.1,2752.7,0.029168]
[1646821838566,0.00265191,2752.9,2752.7,0.029168]
[1646821839611,0.01802538,2753.1,2752.7,0.029168]
[1646821839812,0.02060807,2752.9,2752.7,0.029168]
[1646821840616,0.01795616,2752.9,2752.7,0.029168]
[1646821841015,0.02060807,2752.9,2752.7,0.029168]
[1646821841817,0.01795616,2752.9,2752.7,0.029168]
[1646821842218,0.02060807,2752.9,2752.7,0.029168]
[1646821843058,0.01795616,2752.9,2752.7,0.0251881]
[1646821843259,0.02060807,2752.9,2752.7,0.0251881]
[1646821844263,0.01795616,2752.9,2752.7,0.0251881]
[1646821844666,0.02060807,2752.9,2752.7,0.0251881]
[1646821845468,0.01795616,2752.9,2752.7,0.0251881]
[1646821845675,0.02060807,2752.9,2752.7,0.0251881]
[1646821846710,0.02060807,2752.9,2752.5,1.210768]
[1646821846711,0.01795616,2752.9,2752.5,1.210768]
[1646821846909,0.02060807,2752.9,2752.6,1.49773342]
[1646821847509,0.32060807,2752.9,2752.6,1.49773342]
[1646821847707,1.21641711,2752.8,2752.6,1.49773342]
[1646821848107,1.21641711,2752.8,2752.4,0.029168]
[1646821848308,1.51641711,2752.8,2752.5,1.49779201]
[1646821848509,0.3,2752.8,2752.5,1.49779201]
[1646821848708,0.32060802,2752.9,2752.5,1.49779201]
[1646821849009,0.31795616,2752.9,2752.5,1.49779201]
[1646821849314,0.3202674,2752.9,2752.5,1.49779201]
[1646821850111,0.0202674,2752.9,2752.5,1.49779201]
[1646821850367,0.31795616,2752.9,2752.5,1.49779201]
[1646821850559,0.0202674,2752.9,2752.5,1.49779201]
[1646821850759,0.3202674,2752.9,2752.5,1.49779201]
[1646821851159,0.0202674,2752.9,2752.5,1.49779201]
[1646821851360,0.3202674,2752.9,2752.5,1.49779201]
[1646821851558,0.31795616,2752.9,2752.5,1.49779201]
[1646821851758,0.3202674,2752.9,2752.5,1.49779201]
[1646821852360,3.3202674,2752.9,2752.5,1.49779201]
[1646821852761,4.31795616,2752.9,2752.5,1.49779201]
[1646821852962,4.32060797,2752.9,2752.5,1.49779201]
[1646821853962,4.31795616,2752.9,2752.5,1.49779201]
[1646821854208,4.32060797,2752.9,2752.5,1.49779201]
[1646821855007,4.31795616,2752.9,2752.5,1.49779201]
[1646821855412,4.32060797,2752.9,2752.5,1.49779201]
[1646821856312,4.31795616,2752.9,2752.5,1.49779201]
[1646821856512,4.32060797,2752.9,2752.5,1.49779201]
[1646821857515,4.31795616,2752.9,2752.5,1.49779201]
[1646821857714,4.32060797,2752.9,2752.5,1.49779201]
[1646821858362,0.02060797,2752.9,2752.5,1.49779201]